fUST/lending_fUST_20240714
["ID","MTS","AMOUNT","RATE_DAILY","PERIOD"]
[332085179,1720953066830,-500.0,0.00026301,2]
[332085180,1720953066839,-500.0,0.00026301,2]
[332085181,1720953066849,-151.0,0.00026301,2]
[332085182,1720953066859,-500.0,0.00026301,2]
[332085183,1720953066870,-500.0,0.00026301,2]
[332085184,1720953066880,-151.0,0.00026301,7]
[332085185,1720953066890,-534.28,0.00026301,2]
[332085186,1720953066899,-500.0,0.00026301,2]
[332085187,1720953066909,-5149.46,0.00026301,2]
[332085188,1720953066919,-151.0,0.00026301,7]
[332085189,1720953066929,-500.0,0.00026301,2]
[332085190,1720953066939,-500.0,0.00026301,2]
[332085191,1720953066950,-500.0,0.00026301,2]
[332085192,1720953066960,-500.0,0.00026301,2]
[332085193,1720953066970,-500.0,0.00026301,2]
[332085194,1720953066980,-213.583975,0.00026301,2]
[332085195,1720953066990,-500.0,0.00026301,2]
[332085196,1720953067000,-280.014678,0.00026301,7]
[332085197,1720953067010,-500.0,0.00026301,2]
[332085198,1720953067019,-500.0,0.00026301,2]
[332085199,1720953067029,-280.014678,0.00026301,7]
[332085200,1720953067039,-500.0,0.00026301,2]
[332085201,1720953067049,-500.0,0.00026301,2]
[332085202,1720953067058,-500.0,0.00026301,2]
[332085203,1720953067068,-500.0,0.00026301,2]
[332085204,1720953067078,-264.104524,0.00026301,7]
[332085205,1720953067087,-500.0,0.00026301,2]
[332085206,1720953067098,-264.104524,0.00026301,7]
[332085207,1720953067107,-500.0,0.00026301,2]
[332085208,1720953067117,-500.0,0.00026301,2]
[332085209,1720953067126,-500.0,0.00026301,2]
[332085210,1720953067135,-500.0,0.00026301,2]
[332085211,1720953067145,-500.0,0.00026301,2]
[332085212,1720953067154,-500.0,0.00026301,2]
[332085213,1720953067163,-500.0,0.00026301,2]
[332085214,1720953067172,-500.0,0.00026301,2]
[332085215,1720953067182,-500.0,0.00026301,2]
[332085216,1720953067192,-500.0,0.00026301,2]
[332085217,1720953067202,-500.0,0.00026301,2]
[332085218,1720953067212,-500.0,0.00026301,2]
[332085219,1720953067221,-500.0,0.00026301,2]
[332085220,1720953067230,-500.0,0.00026301,2]
[332085221,1720953067239,-500.0,0.00026301,2]
[332085222,1720953067248,-500.0,0.00026301,2]
[332085223,1720953067257,-500.0,0.00026301,2]
[332085224,1720953067266,-500.0,0.00026301,2]
[332085225,1720953067276,-500.0,0.00026301,2]
[332085226,1720953067285,-473.72930774,0.00026301,2]
[332085227,1720953067298,-500.0,0.00026301,2]
[332085228,1720953067308,-500.0,0.00026301,2]
[332085229,1720953067317,-500.0,0.00026301,2]
[332085230,1720953067326,-500.0,0.00026301,2]
[332085231,1720953067337,-500.0,0.00026301,2]
[332085232,1720953067346,-500.0,0.00026301,2]
[332085233,1720953067355,-500.0,0.00026301,2]
[332085234,1720953067366,-500.0,0.00026301,2]
[332085235,1720953067375,-500.0,0.00026301,2]
[332085236,1720953067383,-500.0,0.00026301,2]
[332085237,1720953067393,-500.0,0.00026301,2]
[332085238,1720953067402,-11077.89,0.00026301,2]
[332085239,1720953067411,-246.84098605,0.00026301,2]
[332085240,1720953067419,-500.0,0.00026301,2]
[332085241,1720953067428,-500.0,0.00026301,2]
[332085242,1720953067438,-500.0,0.00026301,2]
[332085243,1720953067446,-500.0,0.00026301,2]
[332085244,1720953067455,-500.0,0.00026301,2]
[332085245,1720953067464,-500.0,0.00026301,2]
[332085246,1720953067474,-500.0,0.00026301,2]
[332085247,1720953067484,-1413.46,0.00026301,2]
[332085248,1720953067493,-500.0,0.00026301,2]
[332085249,1720953067503,-500.0,0.00026301,2]
[332085250,1720953067512,-500.0,0.00026301,2]
[332085251,1720953067522,-500.0,0.00026301,2]
[332085252,1720953067531,-500.0,0.00026301,2]
[332085253,1720953067540,-500.0,0.00026301,2]
[332085254,1720953067550,-500.0,0.00026301,2]
[332085255,1720953067559,-500.0,0.00026301,2]
[332085256,1720953067569,-500.0,0.00026301,2]
[332085257,1720953067579,-500.0,0.00026301,2]
[332085258,1720953067588,-608.86151288,0.00026301,2]
[332085259,1720953067597,-209.1071623,0.00026301,2]
[332085260,1720953067607,-173.4,0.00026356,2]
[332085261,1720953067617,-150.0,0.000265,2]
[332085262,1720953067626,-790.77511278,0.00026574,2]
[332085263,1720953067635,-294.58996855,0.00026574,2]
[332085264,1720953067644,-679.05,0.00026575,2]
[332085265,1720953067653,-500.0,0.00026575,2]
[332085266,1720953067663,-747.54,0.00026575,2]
[332085267,1720953067672,-500.0,0.00026575,2]
[332085268,1720953067681,-500.0,0.00026575,2]
[332085269,1720953067691,-500.0,0.00026575,2]
[332085270,1720953067700,-500.0,0.00026575,2]
[332085271,1720953067709,-500.0,0.00026575,2]
[332085272,1720953067719,-641.3,0.00026575,2]
[332085273,1720953067728,-151.0,0.00026575,7]
[332085274,1720953067737,-151.0,0.00026575,7]
[332085275,1720953067747,-151.0,0.00026575,7]
[332085276,1720953067756,-500.0,0.00026575,2]
[332085277,1720953067765,-500.0,0.00026575,2]
[332085278,1720953067775,-500.0,0.00026575,2]
[332085279,1720953067784,-500.0,0.00026575,2]
[332085280,1720953067793,-500.0,0.00026575,2]
[332085281,1720953067802,-500.0,0.00026575,2]
[332085282,1720953067812,-500.0,0.00026575,2]
[332085283,1720953067821,-391.84366052,0.00026575,2]
[332085284,1720953067830,-625.83528691,0.00026575,2]
[332085285,1720953067840,-500.0,0.00026575,2]
[332085286,1720953067849,-500.0,0.00026575,2]
[332085287,1720953067858,-500.0,0.00026575,2]
[332085288,1720953067869,-500.0,0.00026575,2]
[332085289,1720953067878,-500.0,0.00026575,2]
[332085290,1720953067962,-500.0,0.00026575,2]
[332085291,1720953067973,-500.0,0.00026575,2]
[332085292,1720953067982,-500.0,0.00026575,2]
[332085293,1720953067992,-500.0,0.00026575,2]
[332085294,1720953068001,-500.0,0.00026575,2]
[332085295,1720953068010,-500.0,0.00026575,2]
[332085296,1720953068020,-500.0,0.00026575,2]
[332085297,1720953068029,-500.0,0.00026575,2]
[332085298,1720953068038,-500.0,0.00026575,2]
[332085299,1720953068048,-500.0,0.00026575,2]
[332085300,1720953068057,-368.05904256,0.00026575,2]
[332085301,1720953068067,-500.0,0.00026575,2]
[332085302,1720953068080,-618.25098869,0.00026575,2]
[332085303,1720953068089,-279.55542492,0.00026575,2]
[332085304,1720953068099,-500.0,0.00026575,2]
[332085305,1720953068109,-500.0,0.00026575,2]
[332085306,1720953068119,-453.55026647,0.00026575,2]
[332085307,1720953068128,-556.02,0.00026575,4]
[332085308,1720953068137,-500.0,0.00026575,2]
[332085309,1720953068147,-500.0,0.00026575,2]
[332085310,1720953068156,-500.0,0.00026575,2]
[332085311,1720953068165,-500.0,0.00026575,2]
[332085312,1720953068174,-500.0,0.00026575,2]
[332085313,1720953068184,-500.0,0.00026575,2]
[332085314,1720953068193,-500.0,0.00026575,2]
[332085315,1720953068203,-500.0,0.00026575,2]
[332085316,1720953068212,-500.0,0.00026575,2]
[332085317,1720953068222,-635.86672219,0.00026575,2]
[332085318,1720953068232,-273.55774797,0.00026575,2]
[332085319,1720953068241,-500.0,0.00026575,2]
[332085320,1720953068250,-500.0,0.00026575,2]
[332085321,1720953068260,-1437.35,0.00026575,2]
[332085322,1720953068269,-500.0,0.00026575,2]
[332085323,1720953068279,-500.0,0.00026575,2]
[332085324,1720953068289,-500.0,0.00026575,2]
[332085325,1720953068301,-500.0,0.00026575,2]
[332085326,1720953068312,-519.92,0.00026575,2]
[332085327,1720953068322,-500.0,0.00026575,2]
[332085328,1720953068331,-508.06,0.00026575,2]
[332085329,1720953068341,-500.0,0.00026575,2]
[332085330,1720953068350,-500.0,0.00026575,2]
[332085331,1720953068359,-596.01,0.00026575,2]
[332085332,1720953068370,-500.0,0.00026575,2]
[332085333,1720953068379,-500.0,0.00026575,2]
[332085334,1720953068388,-500.0,0.00026575,2]
[332085335,1720953068397,-500.0,0.00026575,2]
[332085336,1720953068406,-500.0,0.00026575,2]
[332085337,1720953068415,-500.0,0.00026575,2]
[332085338,1720953068424,-500.0,0.00026575,2]
[332085339,1720953068433,-500.0,0.00026575,2]
[332085340,1720953068443,-500.0,0.00026575,2]
[332085341,1720953068454,-500.0,0.00026575,2]
[332085342,1720953068463,-818.97,0.00026575,2]
[332085343,1720953068472,-500.0,0.00026575,2]
[332085344,1720953068482,-500.0,0.00026575,2]
[332085345,1720953068491,-589.44148159,0.00026575,2]
[332085346,1720953068501,-500.0,0.00026575,2]
[332085347,1720953068510,-534.28,0.00026575,2]
[332085348,1720953068519,-500.0,0.00026575,2]
[332085349,1720953068529,-5149.46,0.00026575,2]
[332085350,1720953068539,-500.0,0.00026575,2]
[332085351,1720953068548,-500.0,0.00026575,2]
[332085352,1720953068558,-500.0,0.00026575,2]
[332085353,1720953068567,-500.0,0.00026575,2]
[332085354,1720953068576,-500.0,0.00026575,2]
[332085355,1720953068586,-500.0,0.00026575,2]
[332085356,1720953068595,-500.0,0.00026575,2]
[332085357,1720953068605,-500.0,0.00026575,2]
[332085358,1720953068616,-500.0,0.00026575,2]
[332085359,1720953068625,-500.0,0.00026575,2]
[332085360,1720953068635,-500.0,0.00026575,2]
[332085361,1720953068644,-500.0,0.00026575,2]
[332085362,1720953068653,-500.0,0.00026575,2]
[332085363,1720953068662,-500.0,0.00026575,2]
[332085364,1720953068672,-500.0,0.00026575,2]
[332085365,1720953068681,-500.0,0.00026575,2]
[332085366,1720953068691,-515.90891164,0.00026575,2]
[332085367,1720953068700,-500.0,0.00026575,2]
[332085368,1720953068710,-500.0,0.00026575,2]
[332085369,1720953068719,-500.0,0.00026575,2]
[332085370,1720953068729,-242.36425271,0.00026575,2]
[332085371,1720953068738,-500.0,0.00026575,2]
[332085372,1720953068748,-500.0,0.00026575,2]
[332085373,1720953068757,-500.0,0.00026575,2]
[332085374,1720953068765,-500.0,0.00026575,2]
[332085375,1720953068775,-500.0,0.00026575,2]
[332085376,1720953068784,-500.0,0.00026575,2]
[332085377,1720953068793,-500.0,0.00026575,2]
[332085378,1720953068804,-500.0,0.00026575,2]
[332085379,1720953068813,-500.0,0.00026575,2]
[332085380,1720953068823,-803.924004,0.00026575,7]
[332085381,1720953068832,-803.924004,0.00026575,7]
[332085382,1720953068842,-500.0,0.00026575,2]
[332085383,1720953068851,-500.0,0.00026575,2]
[332085384,1720953068860,-500.0,0.00026575,2]
[332085385,1720953068870,-500.0,0.00026575,2]
[332085386,1720953068879,-500.0,0.00026575,2]
[332085387,1720953068889,-233.59619079,0.00026575,2]
[332085388,1720953068899,-500.0,0.00026575,2]
[332085389,1720953068909,-500.0,0.00026575,2]
[332085390,1720953068918,-500.0,0.00026575,2]
[332085391,1720953068928,-11077.89,0.00026575,2]
[332085392,1720953068937,-500.0,0.00026575,2]
[332085393,1720953068947,-500.0,0.00026575,2]
[332085394,1720953068956,-506.42655621,0.00026575,2]
[332085395,1720953068966,-500.0,0.00026575,2]
[332085396,1720953068975,-344.84868015,0.00026575,2]
[332085397,1720953068985,-500.0,0.00026575,2]
[332085398,1720953068993,-544.579128,0.00026575,7]
[332085399,1720953069003,-673.266408,0.00026575,7]
[332085400,1720953069013,-544.579128,0.00026575,7]
[332085401,1720953069022,-390.1695524,0.00026575,2]
[332085402,1720953069032,-673.266408,0.00026575,7]
[332085403,1720953069042,-1413.46,0.00026575,2]
[332085404,1720953069052,-203.533316,0.00026575,7]
[332085405,1720953069062,-500.0,0.00026575,2]
[332085406,1720953069071,-500.0,0.00026575,2]
[332085407,1720953069080,-203.533316,0.00026575,7]
[332085408,1720953069090,-500.0,0.00026575,2]
[332085409,1720953069099,-500.0,0.00026575,2]
[332085410,1720953069109,-500.0,0.00026575,2]
[332085411,1720953069120,-500.0,0.00026575,2]
[332085412,1720953069129,-500.0,0.00026575,2]
[332085413,1720953069141,-500.0,0.00026575,2]
[332085414,1720953069151,-759.8014288,0.00026586,2]
[332085415,1720953069160,-364.18737546,0.00026729,2]
[332085416,1720953069169,-379.6170663,0.00026746,2]
[332085417,1720953069178,-2670.02522048,0.00026755,2]
[332085418,1720953069187,-305.438449,0.00026838,7]
[332085419,1720953069196,-305.438449,0.00026838,7]
[332085420,1720953069206,-722.443147,0.00026838,7]
[332085421,1720953069216,-722.443147,0.00026838,7]
[332085422,1720953069225,-151.0,0.00026838,7]
[332085423,1720953069235,-204.600451,0.00026838,7]
[332085424,1720953069243,-204.600451,0.00026838,7]
[332085425,1720953069253,-679.591801,0.00026838,7]
[332085426,1720953069262,-316.304674,0.00026838,7]
[332085427,1720953069272,-316.304674,0.00026838,7]
[332085428,1720953069281,-679.591801,0.00026838,7]
[332085429,1720953069294,-6873.12150085,0.00026849,2]
[332085430,1720953069304,-225.94652212,0.00026849,2]
[332085431,1720953069315,-679.05,0.00026849,2]
[332085432,1720953069324,-539.79,0.00026849,2]
[332085433,1720953069335,-747.54,0.00026849,2]
[332085434,1720953069346,-500.0,0.00026849,2]
[332085435,1720953069356,-315.60048944,0.00026849,2]
[332085436,1720953069368,-500.0,0.00026849,2]
[332085437,1720953069378,-500.0,0.00026849,2]
[332085438,1720953069387,-641.3,0.00026849,2]
[332085439,1720953069397,-635.50066819,0.00026849,2]
[332085440,1720953069406,-500.0,0.00026849,2]
[332085441,1720953069416,-500.0,0.00026849,2]
[332085442,1720953069425,-500.0,0.00026849,2]
[332085443,1720953069434,-500.0,0.00026849,2]
[332085444,1720953069443,-500.0,0.00026849,2]
[332085445,1720953069453,-500.0,0.00026849,2]
[332085446,1720953069462,-500.0,0.00026849,2]
[332085447,1720953069471,-500.0,0.00026849,2]
[332085448,1720953069481,-500.0,0.00026849,2]
[332085449,1720953069491,-151.0,0.00026849,7]
[332085450,1720953069501,-500.0,0.00026849,2]
[332085451,1720953069511,-500.0,0.00026849,2]
[332085452,1720953069520,-500.0,0.00026849,2]
[332085453,1720953069530,-500.0,0.00026849,2]
[332085454,1720953069539,-500.0,0.00026849,2]
[332085455,1720953069549,-500.0,0.00026849,2]
[332085456,1720953069559,-500.0,0.00026849,2]
[332085457,1720953069569,-500.0,0.00026849,2]
[332085458,1720953069578,-500.0,0.00026849,2]
[332085459,1720953069588,-500.0,0.00026849,2]
[332085460,1720953069597,-556.02,0.00026849,4]
[332085461,1720953069607,-500.0,0.00026849,2]
[332085462,1720953069616,-500.0,0.00026849,2]
[332085463,1720953069627,-221.9991293,0.00026849,2]
[332085464,1720953069636,-153.552436,0.00026849,7]
[332085465,1720953069645,-500.0,0.00026849,2]
[332085466,1720953069655,-500.0,0.00026849,2]
[332085467,1720953069665,-500.0,0.00026849,2]
[332085468,1720953069674,-500.0,0.00026849,2]
[332085469,1720953069683,-1437.35,0.00026849,2]
[332085470,1720953069694,-500.0,0.00026849,2]
[332085471,1720953069703,-394.68451402,0.00026849,2]
[332085472,1720953069713,-235.478579,0.00026849,7]
[332085473,1720953069723,-500.0,0.00026849,2]
[332085474,1720953069733,-235.478579,0.00026849,7]
[332085475,1720953069743,-500.0,0.00026849,2]
[332085476,1720953069752,-508.06,0.00026849,2]
[332085477,1720953069761,-151.0,0.00026849,7]
[332085478,1720953069772,-152.11310169,0.00026849,2]
[332085479,1720953069781,-500.0,0.00026849,2]
[332085480,1720953069791,-596.01,0.00026849,2]
[332085481,1720953069800,-500.0,0.00026849,2]
[332085482,1720953069809,-500.0,0.00026849,2]
[332085483,1720953069819,-500.0,0.00026849,2]
[332085484,1720953069828,-575.62784906,0.00026849,2]
[332085485,1720953069837,-500.0,0.00026849,2]
[332085486,1720953069847,-609.1707801,0.00026849,2]
[332085487,1720953069856,-500.0,0.00026849,2]
[332085488,1720953069865,-818.97,0.00026849,2]
[332085489,1720953069876,-500.0,0.00026849,2]
[332085490,1720953069885,-500.0,0.00026849,2]
[332085491,1720953069894,-500.0,0.00026849,2]
[332085492,1720953069904,-534.28,0.00026849,2]
[332085493,1720953069913,-500.0,0.00026849,2]
[332085494,1720953069923,-5149.46,0.00026849,2]
[332085495,1720953069932,-500.0,0.00026849,2]
[332085496,1720953069941,-500.0,0.00026849,2]
[332085497,1720953069950,-500.0,0.00026849,2]
[332085498,1720953069960,-500.0,0.00026849,2]
[332085499,1720953069969,-474.29182579,0.00026849,2]
[332085500,1720953069979,-500.0,0.00026849,2]
[332085501,1720953069988,-429.16481685,0.00026849,2]
[332085502,1720953069998,-500.0,0.00026849,2]
[332085503,1720953070008,-500.0,0.00026849,2]
[332085504,1720953070017,-500.0,0.00026849,2]
[332085505,1720953070026,-500.0,0.00026849,2]
[332085506,1720953070036,-500.0,0.00026849,2]
[332085507,1720953070045,-500.0,0.00026849,2]
[332085508,1720953070055,-500.0,0.00026849,2]
[332085509,1720953070064,-500.0,0.00026849,2]
[332085510,1720953070074,-500.0,0.00026849,2]
[332085511,1720953070084,-500.0,0.00026849,2]
[332085512,1720953070093,-500.0,0.00026849,2]
[332085513,1720953070102,-434.15501106,0.00026849,2]
[332085514,1720953070112,-500.0,0.00026849,2]
[332085515,1720953070122,-500.0,0.00026849,2]
[332085516,1720953070133,-500.0,0.00026849,2]
[332085517,1720953070142,-500.0,0.00026849,2]
[332085518,1720953070151,-500.0,0.00026849,2]
[332085519,1720953070160,-500.0,0.00026849,2]
[332085520,1720953070169,-500.0,0.00026849,2]
[332085521,1720953070178,-500.0,0.00026849,2]
[332085522,1720953070187,-500.0,0.00026849,2]
[332085523,1720953070196,-500.0,0.00026849,2]
[332085524,1720953070206,-500.0,0.00026849,2]
[332085525,1720953070215,-500.0,0.00026849,2]
[332085526,1720953070226,-500.0,0.00026849,2]
[332085527,1720953070235,-11077.89,0.00026849,2]
[332085528,1720953070325,-397.53566885,0.00026849,2]
[332085529,1720953070335,-500.0,0.00026849,2]
[332085530,1720953070345,-500.0,0.00026849,2]
[332085531,1720953070354,-500.0,0.00026849,2]
[332085532,1720953070364,-1413.46,0.00026849,2]
[332085533,1720953070376,-500.0,0.00026849,2]
[332085534,1720953070386,-643.09081186,0.00026849,2]
[332085535,1720953070396,-570.65072636,0.00026849,2]
[332085536,1720953070405,-500.0,0.00026849,2]
[332085537,1720953070415,-500.0,0.00026849,2]
[332085538,1720953070424,-151.0,0.00026849,7]
[332085539,1720953070434,-151.0,0.00026849,7]
[332085540,1720953070443,-200.804126,0.00026849,7]
[332085541,1720953070452,-173.4,0.00026863,2]
[332085542,1720953070462,-200.0,0.00026867,2]
[332085543,1720953070471,-150.0,0.00026886,2]
[332085544,1720953070480,-150.0,0.00026886,2]
[332085545,1720953070489,-3200.0,0.00026964,2]
[332085546,1720953070498,-150.112233,0.00027,5]
[332085547,1720953070508,-1669.04185097,0.00027,4]
[332085548,1720953070517,-1057.70984187,0.00027,15]
[332085549,1720953070527,-150.65189833,0.00027015,2]
[332085550,1720953070537,-1407.0,0.0002708,2]
[332085551,1720953070547,-150.0,0.0002708,2]
[332085552,1720953070557,-503.0,0.0002708,2]
[332085553,1720953070566,-759.8014288,0.00027081,2]
[332085554,1720953070575,-679.05,0.00027123,2]
[332085555,1720953070585,-747.54,0.00027123,2]
[332085556,1720953070594,-500.0,0.00027123,2]
[332085557,1720953070603,-151.0,0.00027123,4]
[332085558,1720953070612,-641.3,0.00027123,2]
[332085559,1720953070622,-538.79963971,0.00027123,2]
[332085560,1720953070631,-500.0,0.00027123,2]
[332085561,1720953070641,-500.0,0.00027123,2]
[332085562,1720953070651,-500.0,0.00027123,2]
[332085563,1720953070660,-500.0,0.00027123,2]
[332085564,1720953070669,-500.0,0.00027123,2]
[332085565,1720953070679,-500.0,0.00027123,2]
[332085566,1720953070689,-500.0,0.00027123,2]
[332085567,1720953070698,-500.0,0.00027123,2]
[332085568,1720953070708,-500.0,0.00027123,2]
[332085569,1720953070717,-500.0,0.00027123,2]
[332085570,1720953070726,-500.0,0.00027123,2]
[332085571,1720953070735,-500.0,0.00027123,2]
[332085572,1720953070744,-556.02,0.00027123,4]
[332085573,1720953070753,-500.0,0.00027123,2]
[332085574,1720953070762,-500.0,0.00027123,2]
[332085575,1720953070772,-565.81997238,0.00027123,2]
[332085576,1720953070782,-500.0,0.00027123,2]
[332085577,1720953070791,-500.0,0.00027123,2]
[332085578,1720953070800,-1437.35,0.00027123,2]
[332085579,1720953070810,-500.0,0.00027123,2]
[332085580,1720953070819,-500.0,0.00027123,2]
[332085581,1720953070830,-508.06,0.00027123,2]
[332085582,1720953070840,-609.83564502,0.00027123,2]
[332085583,1720953070849,-596.01,0.00027123,2]
[332085584,1720953070859,-500.0,0.00027123,2]
[332085585,1720953070868,-500.0,0.00027123,2]
[332085586,1720953070877,-500.0,0.00027123,2]
[332085587,1720953070886,-500.0,0.00027123,2]
[332085588,1720953070896,-818.97,0.00027123,2]
[332085589,1720953070905,-630.07583035,0.00027123,2]
[332085590,1720953070914,-197.1127938,0.00027123,2]
[332085591,1720953070923,-151.0,0.00027123,2]
[332085592,1720953070933,-500.0,0.00027123,2]
[332085593,1720953070943,-151.0,0.00027123,7]
[332085594,1720953070952,-534.28,0.00027123,2]
[332085595,1720953070962,-500.0,0.00027123,2]
[332085596,1720953070971,-5149.46,0.00027123,2]
[332085597,1720953070980,-151.0,0.00027123,7]
[332085598,1720953070990,-500.0,0.00027123,2]
[332085599,1720953070999,-500.0,0.00027123,2]
[332085600,1720953071009,-500.0,0.00027123,2]
[332085601,1720953071018,-280.014678,0.00027123,7]
[332085602,1720953071028,-500.0,0.00027123,2]
[332085603,1720953071037,-280.014678,0.00027123,7]
[332085604,1720953071046,-500.0,0.00027123,2]
[332085605,1720953071056,-500.0,0.00027123,2]
[332085606,1720953071066,-500.0,0.00027123,2]
[332085607,1720953071075,-500.0,0.00027123,2]
[332085608,1720953071085,-264.104524,0.00027123,7]
[332085609,1720953071095,-264.104524,0.00027123,7]
[332085610,1720953071104,-500.0,0.00027123,2]
[332085611,1720953071113,-500.0,0.00027123,2]
[332085612,1720953071123,-500.0,0.00027123,2]
[332085613,1720953071133,-341.83085772,0.00027123,2]
[332085614,1720953071142,-500.0,0.00027123,2]
[332085615,1720953071151,-500.0,0.00027123,2]
[332085616,1720953071160,-500.0,0.00027123,2]
[332085617,1720953071169,-500.0,0.00027123,2]
[332085618,1720953071178,-500.0,0.00027123,2]
[332085619,1720953071188,-219.89208724,0.00027123,2]
[332085620,1720953071197,-500.0,0.00027123,2]
[332085621,1720953071206,-500.0,0.00027123,2]
[332085622,1720953071216,-500.0,0.00027123,2]
[332085623,1720953071225,-500.0,0.00027123,2]
[332085624,1720953071234,-500.0,0.00027123,2]
[332085625,1720953071243,-3335.9084565,0.00027123,2]
[332085626,1720953072091,-150.112233,0.00024481,2]
[332085629,1720953161760,243.84216829,0.00014999,2]
[332085632,1720953173182,474.06142747,0.00014999,2]
[332085633,1720953188302,375.14484938,0.00014999,2]
[332085634,1720953195304,205.45562568,0.00014999,2]
[332085635,1720953196615,375.14484938,0.00014999,2]
[332085636,1720953198570,154.63660398,0.00014999,2]
[332085637,1720953199946,154.74452046,0.00014999,2]
[332085638,1720953202639,154.5286875,0.00014999,2]
[332085639,1720953209406,1906.85890985,0.00014999,2]
[332085640,1720953288149,394.58478293,0.00014999,2]
[332085643,1720953352899,1860.19687074,0.00014999,2]
[332085644,1720953358649,154.62119964,0.00014999,2]
[332085645,1720953360296,374.71648907,0.00014999,2]
[332085665,1720953468320,1421.08473049,0.00015,2]
[332085672,1720953763321,179.39883353,0.00014999,2]
[332085676,1720953950121,-154.54409492,0.00016255,2]
[332085677,1720953950144,-154.54409492,0.00016255,2]
[332085678,1720953950166,-392.77360034,0.00018145,3]
[332085679,1720953950188,-228.90261494,0.00018245,2]
[332085680,1720954035093,-154.54409492,0.00016255,2]
[332085681,1720954035115,-79.35330408,0.00017464,2]
[332085682,1720954039134,-254.06954482,0.00017464,2]
[332085683,1720954039157,-250.0,0.0001754,2]
[332085684,1720954039179,-300.0,0.00017552,2]
[332085685,1720954039202,-300.0,0.00017552,2]
[332085686,1720954039225,-616.18972931,0.00017553,2]
[332085687,1720954051083,-253.11569828,0.00016255,2]
[332085688,1720954051107,-545.08132032,0.00017553,2]
[332085690,1720954114483,633.14598051,0.00014999,2]
[332085692,1720954149171,-3000.0,0.00016919,2]
[332085693,1720954149195,-300.0,0.00017552,2]
[332085694,1720954149219,-11105.93737047,0.00017553,2]
[332085695,1720954149243,-250.0,0.00017588,2]
[332085696,1720954149264,-250.0,0.00017636,2]
[332085697,1720954149286,-250.0,0.00017684,2]
[332085698,1720954149308,-250.0,0.00017732,2]
[332085699,1720954149329,-250.0,0.0001778,2]
[332085700,1720954149351,-250.0,0.00017829,2]
[332085701,1720954149373,-250.0,0.00017877,2]
[332085702,1720954149395,-250.0,0.00017925,2]
[332085703,1720954149416,-250.0,0.00017973,2]
[332085704,1720954149437,-3990.38743908,0.00018,2]
[332085705,1720954149460,-250.0,0.00018021,2]
[332085706,1720954149480,-250.0,0.00018069,2]
[332085707,1720954149501,-250.0,0.00018117,2]
[332085708,1720954149522,-787.38429985,0.00018162,2]
[332085709,1720954149544,-250.0,0.00018165,2]
[332085710,1720954149566,-250.0,0.00018213,2]
[332085711,1720954149588,-160.660602,0.00018219,2]
[332085712,1720954149610,-347.88509852,0.00018245,2]
[332085713,1720954149635,-500.0,0.00018245,2]
[332085714,1720954149656,-524.55176065,0.00018245,2]